bitfinex-derivatives/quotes_SOLF0:USTF0_20230402
["timestamp","ask_amount","ask_price","bid_price","bid_amount"]
[1680435827332,9.56101145,21.051,21.042,45.0383]
[1680435827534,9.56101145,21.05,21.042,45.0383]
[1680435827725,0.06231064,21.056,21.042,45.0383]
[1680435828127,9.63004245,21.056,21.042,45.0383]
[1680435828334,11.31464161,21.055,21.042,45.0383]
[1680435828528,11.31464161,21.054,21.042,45.0383]
[1680435828729,11.31464161,21.053,21.042,45.0383]
[1680435829025,9.56773181,21.052,21.042,45.0383]
[1680435829232,9.56773181,21.051,21.042,45.0383]
[1680435829428,9.56773181,21.05,21.042,45.0383]
[1680435829631,0.06231064,21.056,21.042,45.0383]
[1680435830033,11.37687793,21.056,21.042,45.0383]
[1680435830233,11.31456729,21.055,21.042,45.0383]
[1680435830429,11.31456729,21.054,21.042,45.0383]
[1680435830633,11.31456729,21.053,21.042,45.0383]
[1680435830931,9.56765855,21.052,21.042,45.0383]
[1680435831130,9.56765855,21.051,21.042,45.0383]
[1680435831332,0.06231064,21.056,21.042,45.0383]
[1680435831534,1.80921583,21.056,21.042,45.0383]
[1680435831734,9.56765855,21.055,21.042,45.0383]
[1680435831936,1.74690519,21.054,21.042,45.0383]
[1680435832242,9.56765855,21.053,21.042,45.0383]
[1680435832636,9.56765855,21.052,21.042,45.0383]
[1680435832941,9.56765855,21.051,21.042,45.0383]
[1680435833237,9.56765855,21.05,21.042,45.0383]
[1680435833438,0.06231064,21.056,21.042,45.0383]
[1680435833837,11.37692716,21.056,21.042,45.0383]
[1680435834038,11.31461652,21.055,21.042,45.0383]
[1680435834237,11.31461652,21.054,21.042,45.0383]
[1680435834439,11.31461652,21.053,21.042,45.0383]
[1680435834638,9.56771249,21.052,21.042,45.0383]
[1680435834939,9.56771249,21.051,21.042,45.0383]
[1680435835137,9.56771249,21.05,21.042,45.0383]
[1680435835338,0.06231064,21.056,21.042,45.0383]
[1680435835638,1.80921372,21.056,21.042,45.0383]
[1680435835838,9.56786151,21.055,21.042,45.0383]
[1680435836037,1.74690308,21.054,21.042,45.0383]
[1680435836235,9.56786151,21.053,21.042,45.0383]
[1680435836634,0.06231064,21.056,21.042,45.0383]
[1680435836939,1.80921301,21.056,21.042,45.0383]
[1680435837138,9.56786151,21.055,21.042,45.0383]
[1680435837338,1.74690237,21.054,21.042,45.0383]
[1680435837540,9.56786151,21.053,21.042,45.0383]
[1680435837940,9.56786151,21.052,21.042,45.0383]
[1680435838144,9.56786151,21.051,21.042,45.0383]
[1680435838341,0.06231064,21.056,21.042,45.0383]
[1680435838639,1.8092032,21.056,21.042,45.0383]
[1680435838838,9.56786151,21.055,21.042,45.0383]
[1680435839039,1.74689256,21.054,21.042,45.0383]
[1680435839240,9.56786151,21.053,21.042,45.0383]
[1680435839641,0.06231064,21.056,21.042,45.0383]
[1680435839940,1.80920945,21.056,21.042,45.0383]
[1680435840138,9.56786151,21.055,21.042,45.0383]
[1680435840339,1.74689881,21.054,21.042,45.0383]
[1680435840539,9.56786151,21.053,21.042,45.0383]
[1680435840936,9.56786151,21.052,21.042,45.0383]
[1680435841139,9.56786151,21.051,21.042,45.0383]
[1680435841339,9.56786151,21.05,21.042,45.0383]
[1680435841541,9.56786151,21.049,21.042,45.0383]
[1680435841740,0.06231064,21.056,21.042,45.0383]
[1680435842544,11.37143915,21.056,21.042,45.0383]
[1680435842742,11.30912851,21.055,21.042,45.0383]
[1680435842943,11.30912851,21.054,21.042,45.0383]
[1680435843143,11.30912851,21.053,21.042,45.0383]
[1680435843343,9.56222945,21.052,21.042,45.0383]
[1680435843645,9.56222945,21.051,21.042,45.0383]
[1680435843943,9.56222945,21.05,21.042,45.0383]
[1680435844142,9.56222945,21.049,21.042,45.0383]
[1680435844343,0.06231064,21.056,21.042,45.0383]
[1680435844737,11.37125028,21.056,21.042,45.0383]
[1680435844943,11.30893964,21.055,21.042,45.0383]
[1680435845141,11.30893964,21.054,21.042,45.0383]
[1680435845443,11.30893964,21.053,21.042,45.0383]
[1680435845638,9.56204246,21.052,21.042,45.0383]
[1680435845844,9.56204246,21.051,21.042,45.0383]
[1680435846145,9.56204246,21.05,21.042,45.0383]
[1680435846344,9.56204246,21.049,21.042,45.0383]
[1680435846544,0.06231064,21.056,21.042,45.0383]
[1680435846744,1.80920811,21.056,21.042,45.0383]
[1680435847043,9.56179918,21.055,21.042,45.0383]
[1680435847244,1.74689747,21.054,21.042,45.0383]
[1680435847437,9.56179918,21.053,21.042,45.0383]
[1680435847946,9.56179918,21.052,21.042,45.0383]
[1680435848246,9.56179918,21.051,21.042,45.0383]
[1680435848544,9.56179918,21.05,21.042,45.0383]
[1680435848744,9.56179918,21.049,21.042,45.0383]
[1680435848943,0.06231064,21.056,21.042,45.0383]
[1680435849144,1.80921238,21.056,21.042,45.0383]
[1680435849346,9.56183389,21.055,21.042,45.0383]
[1680435849647,1.74690174,21.054,21.042,45.0383]
[1680435849847,9.56183389,21.053,21.042,45.0383]
[1680435850347,9.56183389,21.052,21.042,45.0383]
[1680435850646,9.56183389,21.051,21.042,45.0383]
[1680435850848,9.56183389,21.05,21.042,45.0383]
[1680435851042,9.56183389,21.049,21.042,45.0383]
[1680435851244,0.06231064,21.056,21.042,45.0383]
[1680435851747,11.37110512,21.056,21.042,45.0383]
[1680435852046,11.30879448,21.055,21.042,45.0383]
[1680435852347,11.30879448,21.054,21.042,45.0383]
[1680435852547,11.30879448,21.053,21.042,45.0383]
[1680435852747,9.56189438,21.052,21.042,45.0383]
[1680435852944,9.56189438,21.051,21.042,45.0383]
[1680435853147,9.56189438,21.05,21.042,45.0383]
[1680435853347,9.56189438,21.049,21.042,45.0383]
[1680435853547,0.06231064,21.056,21.042,45.0383]
[1680435853945,11.37115799,21.056,21.042,45.0383]
[1680435854145,11.30884735,21.055,21.042,45.0383]
[1680435854347,11.30884735,21.054,21.042,45.0383]
[1680435854648,11.30884735,21.053,21.042,45.0383]
[1680435854847,9.56194999,21.052,21.042,45.0383]
[1680435855048,9.56194999,21.051,21.042,45.0383]
[1680435855248,9.56194999,21.05,21.042,45.0383]
[1680435855547,9.56194999,21.049,21.042,45.0383]
[1680435855749,0.06231064,21.056,21.042,45.0383]
[1680435856149,11.37117814,21.056,21.042,45.0383]
[1680435856348,11.3088675,21.055,21.042,45.0383]
[1680435856647,11.3088675,21.054,21.042,45.0383]
[1680435856847,11.3088675,21.053,21.042,45.0383]
[1680435857049,9.56197071,21.052,21.042,45.0383]
[1680435857349,9.56197071,21.051,21.042,45.0383]
[1680435857649,9.56197071,21.05,21.042,45.0383]
[1680435857844,9.56197071,21.049,21.042,45.0383]
[1680435858048,0.06231064,21.056,21.042,45.0383]
[1680435858448,11.37109052,21.056,21.042,45.0383]
[1680435858650,11.30877988,21.055,21.042,45.0383]
[1680435858850,11.30877988,21.054,21.042,45.0383]
[1680435859051,11.30877988,21.053,21.042,45.0383]
[1680435859251,9.56187938,21.052,21.042,45.0383]
[1680435859452,9.56187938,21.051,21.042,45.0383]
[1680435859751,9.56187938,21.05,21.042,45.0383]
[1680435859946,9.56187938,21.049,21.042,45.0383]
[1680435860152,0.06231064,21.056,21.042,45.0383]
[1680435860650,11.37112679,21.056,21.042,45.0383]
[1680435860851,11.30881615,21.055,21.042,45.0383]
[1680435861052,11.30881615,21.054,21.042,45.0383]
[1680435861351,11.30881615,21.053,21.042,45.0383]
[1680435861546,9.56191788,21.052,21.042,45.0383]
[1680435861748,9.56191788,21.051,21.042,45.0383]
[1680435861953,9.56191788,21.05,21.042,45.0383]
[1680435862148,9.56191788,21.049,21.042,45.0383]
[1680435862453,0.06231064,21.056,21.042,45.0383]
[1680435862955,11.37115395,21.056,21.042,45.0383]
[1680435863157,11.30884331,21.055,21.042,45.0383]
[1680435863352,0.06231064,21.056,21.042,45.0383]
[1680435863353,11.30884331,21.054,21.042,45.0383]
[1680435863654,11.30884331,21.053,21.042,45.0383]
[1680435863953,9.5619459,21.052,21.042,45.0383]
[1680435864153,9.5619459,21.051,21.042,45.0383]
[1680435864355,9.5619459,21.05,21.042,45.0383]
[1680435864554,9.5619459,21.049,21.042,45.0383]
[1680435864756,0.06231064,21.056,21.042,45.0383]
[1680435865556,11.37115961,21.056,21.042,45.0383]
[1680435865757,11.30884897,21.055,21.042,45.0383]
[1680435866057,11.30884897,21.054,21.042,45.0383]
[1680435866357,11.30884897,21.053,21.042,45.0383]
[1680435866560,9.56196125,21.052,21.042,45.0383]
[1680435866753,0.06231064,21.056,21.042,45.0383]
[1680435867350,11.37115973,21.056,21.042,45.0383]
[1680435867654,11.30884909,21.055,21.042,45.0383]
[1680435867855,11.30884909,21.054,21.042,45.0383]
[1680435868159,11.30884909,21.053,21.042,45.0383]
[1680435868358,9.56196125,21.052,21.042,45.0383]
[1680435868556,9.56196125,21.051,21.042,45.0383]
[1680435868755,9.56196125,21.05,21.042,45.0383]
[1680435868957,9.56196125,21.049,21.042,45.0383]
[1680435869156,0.06231064,21.056,21.042,45.0383]
[1680435869958,11.3713801,21.056,21.042,45.0383]
[1680435870158,11.30906946,21.055,21.042,45.0383]
[1680435870360,11.30906946,21.054,21.042,45.0383]
[1680435870559,11.30906946,21.053,21.042,45.0383]
[1680435870760,9.56218015,21.052,21.042,45.0383]
[1680435870959,9.56218015,21.051,21.042,45.0383]
[1680435871162,9.56218015,21.05,21.042,45.0383]
[1680435871361,9.56218015,21.049,21.042,45.0383]
[1680435871562,0.06231064,21.056,21.042,45.0383]
[1680435872563,11.37135857,21.056,21.042,45.0383]
[1680435872864,11.30904793,21.055,21.042,45.0383]
[1680435873066,11.30904793,21.054,21.042,45.0383]
[1680435873263,11.30904793,21.053,21.042,45.0383]
[1680435873465,9.56215896,21.052,21.042,45.0383]
[1680435873664,9.56215896,21.051,21.042,45.0383]
[1680435873865,9.56215896,21.05,21.042,45.0383]
[1680435874068,9.56215896,21.049,21.042,45.0383]
[1680435874266,0.06231064,21.056,21.042,45.0383]
[1680435875166,11.37121733,21.056,21.042,45.0383]
[1680435875368,11.30890669,21.055,21.042,45.0383]
[1680435875567,11.30890669,21.054,21.042,45.0383]
[1680435875767,11.30890669,21.053,21.042,45.0383]
[1680435876068,9.56201677,21.052,21.042,45.0383]
[1680435876268,9.56201677,21.051,21.042,45.0383]
[1680435876470,9.56201677,21.05,21.042,45.0383]
[1680435876668,9.56201677,21.049,21.042,45.0383]
[1680435876969,0.06231064,21.056,21.042,45.0383]
[1680435877866,11.37133279,21.056,21.042,45.0383]
[1680435878067,11.30902215,21.055,21.042,45.0383]
[1680435878269,11.30902215,21.054,21.042,45.0383]
[1680435878467,11.30902215,21.053,21.042,45.0383]
[1680435878664,11.30902215,21.052,21.042,45.0383]
[1680435878866,9.5620997,21.051,21.042,45.0383]
[1680435879068,0.06231064,21.056,21.042,45.0383]
[1680435879772,1.8092528,21.056,21.042,45.0383]
[1680435880069,9.5620997,21.055,21.042,45.0383]
[1680435880270,1.74694216,21.054,21.042,45.0383]
[1680435880469,9.5620997,21.053,21.042,45.0383]
[1680435880670,1.74694216,21.052,21.042,45.0383]
[1680435880868,9.5620997,21.051,21.042,45.0383]
[1680435881269,9.5620997,21.05,21.042,45.0383]
[1680435881469,9.5620997,21.049,21.042,45.0383]
[1680435881670,9.5620997,21.048,21.042,45.0383]
[1680435881871,0.06231064,21.056,21.042,45.0383]
[1680435882772,11.37157461,21.056,21.042,45.0383]
[1680435882971,11.30926397,21.055,21.042,45.0383]
[1680435883171,11.30926397,21.054,21.042,45.0383]
[1680435883373,11.30926397,21.053,21.042,45.0383]
[1680435883573,9.56232991,21.052,21.042,45.0383]
[1680435883771,9.56232991,21.051,21.042,45.0383]
[1680435883973,9.56232991,21.05,21.042,45.0383]
[1680435884175,0.06231064,21.056,21.042,45.0383]
[1680435884873,11.37157269,21.056,21.042,45.0383]
[1680435885069,11.30926205,21.055,21.042,45.0383]
[1680435885272,11.30926205,21.054,21.042,45.0383]
[1680435885571,9.56232991,21.053,21.043,132.77525984]
[1680435885773,9.56232991,21.052,21.043,5.0]
[1680435885972,9.56232991,21.051,21.043,5.0]
[1680435886169,0.06231064,21.056,21.043,5.0]
[1680435887572,11.37210118,21.056,21.043,5.0]
[1680435887774,11.30979054,21.055,21.043,5.0]
[1680435887974,9.56323176,21.054,21.043,5.0]
[1680435888177,9.56323176,21.053,21.043,5.0]
[1680435888478,9.56323176,21.052,21.043,5.0]
[1680435888678,0.06231064,21.056,21.043,5.0]
[1680435889778,0.06231064,21.056,21.042,45.0383]
[1680435889975,11.37207128,21.056,21.042,45.0383]
[1680435890181,11.30976064,21.055,21.042,45.0383]
[1680435890380,9.56320174,21.054,21.042,45.0383]
[1680435890582,9.56320174,21.053,21.042,45.0383]
[1680435890881,9.56320174,21.052,21.042,45.0383]
[1680435891082,0.06231064,21.056,21.042,45.0383]
[1680435892182,11.37194983,21.056,21.042,45.0383]
[1680435892379,11.30963919,21.055,21.042,45.0383]
[1680435892576,9.56308033,21.054,21.042,45.0383]
[1680435892781,9.56308033,21.053,21.042,45.0383]
[1680435892979,9.56308033,21.052,21.042,45.0383]
[1680435893178,0.06231064,21.056,21.042,45.0383]
[1680435894380,11.37195418,21.056,21.042,45.0383]
[1680435894584,11.30964354,21.055,21.042,45.0383]
[1680435894785,9.56308464,21.054,21.042,45.0383]
[1680435894984,9.56308464,21.053,21.042,45.0383]
[1680435895185,9.56308464,21.052,21.042,45.0383]
[1680435895486,0.06231064,21.056,21.042,45.0383]
[1680435896483,11.37194949,21.056,21.042,45.0383]
[1680435896683,11.30963885,21.055,21.042,45.0383]
[1680435896884,9.56308223,21.054,21.042,45.0383]
[1680435897088,9.56308223,21.053,21.042,45.0383]
[1680435897281,9.56308223,21.052,21.042,45.0383]
[1680435897486,0.06231064,21.056,21.042,45.0383]
[1680435898485,11.37181378,21.056,21.042,45.0383]
[1680435898682,11.30950314,21.055,21.042,45.0383]
[1680435898883,9.56293783,21.054,21.042,45.0383]
[1680435899082,0.06231064,21.056,21.042,45.0383]
[1680435900190,11.37181373,21.056,21.042,45.0383]
[1680435900390,11.30950309,21.055,21.042,45.0383]
[1680435900591,9.56293783,21.054,21.042,45.0383]
[1680435900792,9.56293783,21.053,21.042,45.0383]
[1680435900991,9.56293783,21.052,21.042,45.0383]
[1680435901191,0.06231064,21.056,21.042,45.0383]
[1680435902292,11.37182977,21.056,21.042,45.0383]
[1680435902493,11.30951913,21.055,21.042,45.0383]
[1680435902693,9.56295484,21.054,21.042,45.0383]
[1680435902894,9.56295484,21.053,21.042,45.0383]
[1680435903095,9.56295484,21.052,21.042,45.0383]
[1680435903295,0.06231064,21.056,21.042,45.0383]
[1680435904302,11.37166005,21.056,21.042,45.0383]
[1680435904490,11.30934941,21.055,21.042,45.0383]
[1680435904694,9.56278575,21.054,21.042,45.0383]
[1680435904888,9.56278575,21.053,21.042,45.0383]
[1680435905097,9.56278575,21.052,21.042,45.0383]
[1680435905397,9.56278575,21.051,21.042,45.0383]
[1680435905597,0.06231064,21.056,21.042,45.0383]
[1680435906102,11.37170944,21.056,21.042,45.0383]
[1680435906297,11.3093988,21.055,21.042,45.0383]
[1680435906501,11.3093988,21.054,21.042,45.0383]
[1680435906801,9.56265329,21.053,21.042,45.0383]
[1680435907102,9.56265329,21.052,21.042,45.0383]
[1680435907295,0.06231064,21.056,21.042,45.0383]
[1680435907495,11.3717099,21.056,21.042,45.0383]
[1680435907801,11.30939926,21.055,21.042,45.0383]
[1680435908000,11.30939926,21.054,21.042,45.0383]
[1680435908299,9.56265329,21.053,21.042,45.0383]
[1680435908500,9.56265329,21.052,21.042,45.0383]
[1680435908799,9.56265329,21.051,21.042,45.0383]
[1680435908992,0.06231064,21.056,21.042,45.0383]
[1680435909497,11.37164748,21.056,21.042,45.0383]
[1680435909799,11.30933684,21.055,21.042,45.0383]
[1680435909999,11.30933684,21.054,21.042,45.0383]
[1680435910200,9.56259101,21.053,21.042,45.0383]
[1680435910400,9.56259101,21.052,21.042,45.0383]
[1680435910698,9.56259101,21.051,21.042,45.0383]
[1680435910896,0.06231064,21.056,21.042,45.0383]
[1680435911398,11.37166453,21.056,21.042,45.0383]
[1680435911594,11.30935389,21.055,21.042,45.0383]
[1680435911798,11.30935389,21.054,21.042,45.0383]
[1680435912003,9.56260803,21.053,21.042,45.0383]
[1680435912201,0.06231064,21.056,21.042,45.0383]
[1680435912401,11.37166459,21.056,21.042,45.0383]
[1680435912601,11.30935395,21.055,21.042,45.0383]
[1680435912801,11.30935395,21.054,21.042,45.0383]
[1680435913002,9.56260803,21.053,21.042,45.0383]
[1680435913196,9.56260803,21.052,21.042,45.0383]
[1680435913399,9.56260803,21.051,21.042,45.0383]
[1680435913600,0.06231064,21.056,21.042,45.0383]
[1680435914106,11.37170438,21.056,21.042,45.0383]
[1680435914404,11.30939374,21.055,21.042,45.0383]
[1680435914704,11.30939374,21.054,21.042,45.0383]
[1680435914910,11.30946094,21.053,21.042,45.0383]
[1680435915111,11.30963859,21.052,21.041,0.06486192]
[1680435915309,142.6,21.05,21.041,0.06486192]
[1680435915508,0.04189233,21.041,21.033,45.6101]
[1680435963545,0.04189233,21.041,21.034,5.0]
[1680435965744,0.04189233,21.041,21.033,45.6101]
[1680435987358,0.06387311,21.044,21.033,45.6101]
[1680435988959,9.61776201,21.044,21.033,45.6101]
[1680435989150,9.5538889,21.043,21.033,45.6101]
[1680435989358,9.5538889,21.042,21.033,45.6101]
[1680435989556,0.06387311,21.044,21.033,45.6101]
[1680435990259,9.61768062,21.044,21.033,45.6101]
[1680435990459,9.55380751,21.043,21.033,45.6101]
[1680435990660,9.55380751,21.042,21.033,45.6101]
[1680435990862,0.06387311,21.044,21.033,45.6101]
[1680435991562,11.3652562,21.044,21.033,45.6101]
[1680435991862,9.55384004,21.043,21.033,45.6101]
[1680435992063,9.55384004,21.042,21.033,45.6101]
[1680435992262,0.06387311,21.044,21.033,45.6101]
[1680435992864,11.3649089,21.044,21.033,45.6101]
[1680435993164,9.55348217,21.043,21.033,45.6101]
[1680435993462,9.55348217,21.042,21.033,45.6101]
[1680435993662,0.06387311,21.044,21.033,45.6101]
[1680435994264,11.36854817,21.044,21.033,45.6101]
[1680435994463,9.55711213,21.043,21.033,45.6101]
[1680435994664,9.55711213,21.042,21.033,45.6101]
[1680435994965,0.06387311,21.044,21.033,45.6101]
[1680435995666,11.36860594,21.044,21.033,45.6101]
[1680435995965,9.55716955,21.043,21.033,45.6101]
[1680435996164,9.55716955,21.042,21.033,45.6101]
[1680435996365,0.06387311,21.044,21.033,45.6101]
[1680435996965,11.36827724,21.044,21.033,45.6101]
[1680435997165,9.55684568,21.043,21.033,45.6101]
[1680435997367,9.55684568,21.042,21.033,45.6101]
[1680435997565,0.06387311,21.044,21.033,45.6101]
[1680435998167,11.3683035,21.044,21.033,45.6101]
[1680435998367,9.55687185,21.043,21.033,45.6101]
[1680435998567,9.55687185,21.042,21.033,45.6101]
[1680435998769,0.06387311,21.044,21.033,45.6101]
[1680435999367,11.36832691,21.044,21.033,45.6101]
[1680435999568,9.5568951,21.043,21.033,45.6101]
[1680435999867,9.5568951,21.042,21.033,45.6101]
[1680436000069,0.06387311,21.044,21.033,45.6101]
[1680436000867,11.36832824,21.044,21.033,45.6101]
[1680436001070,9.5568951,21.043,21.033,45.6101]
[1680436001269,9.5568951,21.042,21.033,45.6101]
[1680436001569,0.06387311,21.044,21.033,45.6101]
[1680436002266,11.36824137,21.044,21.033,45.6101]
[1680436002571,9.55680862,21.043,21.033,45.6101]
[1680436002771,0.06387311,21.044,21.033,45.6101]
[1680436003164,11.36826031,21.044,21.033,45.6101]
[1680436003468,9.55680862,21.043,21.033,45.6101]
[1680436003670,9.55680862,21.042,21.033,45.6101]
[1680436003872,0.06387311,21.044,21.033,45.6101]
[1680436004570,11.36801607,21.044,21.033,45.6101]
[1680436004871,9.55656484,21.043,21.033,45.6101]
[1680436005072,9.55656484,21.042,21.033,45.6101]
[1680436005273,0.06387311,21.044,21.033,45.6101]
[1680436005974,11.36815826,21.044,21.033,45.6101]
[1680436006172,9.55671026,21.043,21.033,45.6101]
[1680436006472,9.55671026,21.042,21.033,45.6101]
[1680436006672,0.06387311,21.044,21.033,45.6101]
[1680436007273,11.36809338,21.044,21.033,45.6101]
[1680436007473,9.55664987,21.043,21.033,45.6101]
[1680436007673,9.55664987,21.042,21.033,45.6101]
[1680436007873,0.06387311,21.044,21.033,45.6101]
[1680436008466,11.36816302,21.044,21.033,45.6101]
[1680436008768,9.55672158,21.043,21.033,45.6101]
[1680436008974,9.55672158,21.042,21.033,45.6101]
[1680436009167,0.06387311,21.044,21.033,45.6101]
[1680436009567,11.36842353,21.044,21.033,45.6101]
[1680436009771,9.55698261,21.043,21.033,45.6101]
[1680436010066,9.55698261,21.042,21.033,45.6101]
[1680436010271,0.06387311,21.044,21.033,45.6101]
[1680436010871,11.36839453,21.044,21.033,45.6101]
[1680436011071,9.55695242,21.043,21.033,45.6101]
[1680436011272,9.55695242,21.042,21.033,45.6101]
[1680436011474,0.06387311,21.044,21.033,45.6101]
[1680436012273,11.36840186,21.044,21.033,45.6101]
[1680436012476,9.55696181,21.043,21.033,45.6101]
[1680436012775,9.55696181,21.042,21.033,45.6101]
[1680436012976,0.06387311,21.044,21.033,45.6101]
[1680436013678,11.36838151,21.044,21.033,45.6101]
[1680436013869,9.55694208,21.043,21.033,45.6101]
[1680436014067,9.55694208,21.042,21.033,45.6101]
[1680436014272,0.06387311,21.044,21.033,45.6101]
[1680436014973,11.36831558,21.044,21.033,45.6101]
[1680436015173,9.55687453,21.043,21.033,45.6101]
[1680436015376,9.55687453,21.042,21.033,45.6101]
[1680436015576,0.06387311,21.044,21.033,45.6101]
[1680436016178,11.36839012,21.044,21.033,45.6101]
[1680436016378,9.55694988,21.043,21.033,45.6101]
[1680436016573,9.55694988,21.042,21.033,45.6101]
[1680436016781,0.06387311,21.044,21.033,45.6101]
[1680436017773,11.36838362,21.044,21.033,45.6101]
[1680436017977,9.55694235,21.043,21.033,45.6101]
[1680436018279,9.55694235,21.042,21.033,45.6101]
[1680436018481,0.06387311,21.044,21.033,45.6101]
[1680436019282,11.36831892,21.044,21.033,45.6101]
[1680436019580,9.55687005,21.043,21.033,45.6101]
[1680436019774,9.55687005,21.042,21.033,45.6101]
[1680436019978,0.06387311,21.044,21.033,45.6101]
[1680436020781,11.36834732,21.044,21.033,45.6101]
[1680436020981,9.55690179,21.043,21.033,45.6101]
[1680436021187,9.55690179,21.042,21.033,45.6101]
[1680436021384,0.06387311,21.044,21.033,45.6101]
[1680436022280,11.36835616,21.044,21.033,45.6101]
[1680436022481,9.55691285,21.043,21.033,45.6101]
[1680436022681,9.55691285,21.042,21.033,45.6101]
[1680436022981,0.06387311,21.044,21.033,45.6101]
[1680436023784,9.62075774,21.044,21.033,45.6101]
[1680436023985,0.06387311,21.044,21.033,45.6101]
[1680436025082,9.62099423,21.044,21.033,45.6101]
[1680436025284,9.55712112,21.043,21.033,45.6101]
[1680436025483,0.06387311,21.044,21.033,45.6101]
[1680436027082,9.62219855,21.044,21.033,45.6101]
[1680436027284,0.06387311,21.044,21.033,45.6101]
[1680436028480,9.6210591,21.044,21.033,45.6101]
[1680436028690,0.06387311,21.044,21.033,45.6101]
[1680436029889,9.62751989,21.044,21.033,45.6101]
[1680436030190,0.06387311,21.044,21.033,45.6101]
[1680436032290,9.62874918,21.044,21.033,45.6101]
[1680436032490,0.06387311,21.044,21.033,45.6101]
[1680436033591,9.62938524,21.044,21.033,45.6101]
[1680436033794,0.06387311,21.044,21.033,45.6101]
[1680436035694,9.62929963,21.044,21.033,45.6101]
[1680436035890,0.06387311,21.044,21.033,45.6101]
[1680436037394,0.06387311,21.044,21.034,5.0]
[1680436038798,9.62922833,21.044,21.034,5.0]
[1680436039098,0.06387311,21.044,21.034,5.0]
[1680436039502,0.06387311,21.044,21.033,45.6101]
[1680436046202,9.62913213,21.044,21.033,45.6101]
[1680436046405,0.06387311,21.044,21.033,45.6101]
[1680436048506,9.62749327,21.044,21.033,45.6101]
[1680436048706,0.06387311,21.044,21.033,45.6101]
[1680436050311,9.6276923,21.044,21.033,45.6101]
[1680436050611,0.06387311,21.044,21.033,45.6101]
[1680436055914,9.62838746,21.044,21.033,45.6101]
[1680436056215,0.06387311,21.044,21.033,45.6101]
[1680436057717,9.62822855,21.044,21.033,45.6101]
[1680436057916,0.06387311,21.044,21.033,45.6101]
[1680436069023,9.62825687,21.044,21.033,45.6101]
[1680436069223,0.06387311,21.044,21.033,45.6101]
[1680436072425,9.62872815,21.044,21.033,45.6101]
[1680436072723,0.06387311,21.044,21.033,45.6101]
[1680436077724,9.62869493,21.044,21.033,45.6101]
[1680436077924,0.06387311,21.044,21.033,45.6101]
[1680436088436,0.06387311,21.044,21.034,127.79867228]
[1680436093536,9.62903874,21.044,21.034,127.79867228]
[1680436093738,9.56516563,21.043,21.034,127.79867228]
[1680436093939,0.06387311,21.044,21.034,127.79867228]
[1680436096031,0.06387311,21.044,21.033,45.6101]
[1680436096938,11.38023386,21.044,21.033,45.6101]
[1680436097238,9.56910884,21.043,21.033,45.6101]
[1680436097437,9.56910884,21.042,21.033,45.6101]
[1680436097636,9.56910884,21.041,21.033,45.6101]
[1680436097838,9.56910884,21.04,21.033,45.6101]
[1680436098038,0.06387311,21.044,21.033,45.6101]
[1680436098838,11.37721972,21.044,21.033,45.6101]
[1680436099141,9.56572586,21.043,21.033,45.6101]
[1680436099441,9.56572586,21.042,21.033,45.6101]
[1680436099641,9.56572586,21.041,21.033,45.6101]
[1680436099842,9.56572586,21.04,21.033,45.6101]
[1680436100140,0.06387311,21.044,21.033,45.6101]
[1680436100937,11.37698796,21.044,21.033,45.6101]
[1680436101142,9.56549504,21.043,21.033,45.6101]
[1680436101338,0.06387311,21.044,21.033,45.6101]
[1680436102144,11.37698879,21.044,21.033,45.6101]
[1680436102443,9.56549504,21.043,21.033,45.6101]
[1680436102643,9.56549504,21.042,21.033,45.6101]
[1680436102843,0.06387311,21.044,21.033,45.6101]
[1680436103542,1.81149306,21.044,21.033,45.6101]
[1680436103741,9.56549504,21.043,21.033,45.6101]
[1680436104143,9.56549504,21.042,21.033,45.6101]
[1680436104444,9.56549504,21.041,21.033,45.6101]
[1680436104744,0.06387311,21.044,21.033,45.6101]
[1680436105543,11.38742347,21.044,21.033,45.6101]
[1680436105739,9.5759314,21.043,21.033,45.6101]
[1680436105939,0.06387311,21.044,21.033,45.6101]
[1680436106644,11.38742331,21.044,21.033,45.6101]
[1680436106841,9.5759314,21.043,21.033,45.6101]
[1680436107042,9.5759314,21.042,21.033,45.6101]
[1680436107239,9.5759314,21.041,21.033,45.6101]
[1680436107543,0.06387311,21.044,21.033,45.6101]
[1680436108646,11.380864,21.044,21.033,45.6101]
[1680436108845,9.56937274,21.043,21.033,45.6101]